bitfinex/quotes_BTCUSD_20241201
["timestamp","ask_amount","ask_price","bid_price","bid_amount"]
[1733011550887,0.15024521,96594.0,96593.0,0.00477322]
[1733011551137,0.0474,96593.0,96590.0,0.00477322]
[1733011551376,0.0474,96593.0,96592.0,0.00477322]
[1733011553487,0.15024521,96593.0,96592.0,0.00477322]
[1733011553739,0.15024521,96593.0,96592.0,0.00977322]
[1733011553949,0.0474,96600.0,96599.0,0.00477322]
[1733011554185,0.0474,96600.0,96592.0,0.005]
[1733011554186,0.0817,96607.0,96606.0,0.00477322]
[1733011555422,0.0827,96607.0,96606.0,0.00477322]
[1733011556602,0.0817,96607.0,96606.0,0.00477322]
[1733011557059,0.0817,96607.0,96606.0,0.00677322]
[1733011562788,0.01933065,96616.0,96606.0,0.00677322]
[1733011563000,0.10406223,96609.0,96606.0,0.00677322]
[1733011563216,0.10406223,96609.0,96607.0,0.00370767]
[1733011563422,0.10406223,96609.0,96606.0,0.00677322]
[1733011563873,0.10406223,96609.0,96606.0,0.00477322]
[1733011564075,0.10406223,96609.0,96606.0,0.00577322]
[1733011566129,0.000864,96607.0,96606.0,0.00577322]
[1733011567109,0.000864,96607.0,96606.0,0.00947878]
[1733011567322,0.000864,96607.0,96606.0,0.00847878]
[1733011567761,0.000864,96607.0,96606.0,0.01047878]
[1733011568821,0.000864,96607.0,96606.0,0.00677322]
[1733011569038,0.000864,96607.0,96606.0,0.01047902]
[1733011569268,0.02022024,96607.0,96606.0,0.00677322]
[1733011569480,0.20286545,96607.0,96606.0,0.00677322]
[1733011570575,0.20286545,96607.0,96603.0,0.00477322]
[1733011570798,0.20286545,96607.0,96589.0,0.00356023]
[1733011570799,0.12220145,96606.0,96602.0,0.00477322]
[1733011571032,0.01935624,96605.0,96602.0,0.00477322]
[1733011571250,0.01935624,96605.0,96589.0,0.00356023]
[1733011571251,0.10284521,96605.0,96604.0,0.00477322]
[1733011571470,0.12223467,96605.0,96602.0,0.00477322]
[1733011571701,0.01938946,96604.0,96602.0,0.00477322]
[1733011571939,0.01938946,96604.0,96589.0,0.001728]
[1733011571940,0.01938946,96603.0,96600.0,0.00477322]
[1733011572188,0.10284521,96605.0,96600.0,0.00477322]
[1733011572431,0.10284521,96605.0,96601.0,0.00477322]
[1733011572666,0.10284521,96605.0,96602.0,0.00477322]
[1733011572908,0.10284521,96605.0,96604.0,0.00477322]
[1733011574139,0.10284521,96605.0,96604.0,0.00677322]
[1733011574376,0.10284521,96605.0,96604.0,0.00477322]
[1733011574848,0.10284521,96605.0,96604.0,0.00677322]
[1733011575141,0.10284521,96605.0,96599.0,0.00477322]
[1733011575381,0.10284521,96604.0,96595.0,0.00477322]
[1733011575608,0.0466,96603.0,96595.0,0.00477322]
[1733011575829,0.10284521,96602.0,96595.0,0.00477322]
[1733011576474,0.10284521,96601.0,96596.0,0.0783]
[1733011576687,0.000864,96607.0,96606.0,0.00477322]
[1733011576901,0.000864,96607.0,96606.0,0.00847943]
[1733011578173,0.001864,96607.0,96606.0,0.00847943]
[1733011579362,0.000864,96607.0,96606.0,0.00847943]
[1733011580203,0.000864,96607.0,96606.0,0.01047943]
[1733011580428,0.000864,96607.0,96606.0,0.00847943]
[1733011580873,0.000864,96607.0,96606.0,0.01047943]
[1733011581348,0.000864,96607.0,96606.0,0.00987943]
[1733011584618,0.000864,96607.0,96606.0,0.13267943]
[1733011584830,0.000864,96607.0,96606.0,0.00987943]
[1733011585698,0.000864,96607.0,96606.0,0.00787943]
[1733011585904,0.000864,96607.0,96606.0,0.01587943]
[1733011586110,0.000864,96607.0,96606.0,0.00787943]
[1733011586549,0.000864,96607.0,96606.0,0.01487943]
[1733011586761,0.000864,96607.0,96606.0,0.00787943]
[1733011587180,0.000864,96607.0,96606.0,0.01587943]
[1733011587393,0.000864,96607.0,96606.0,0.00787943]
[1733011588066,0.000864,96607.0,96606.0,0.01087943]
[1733011588773,0.000864,96607.0,96606.0,0.00787943]
[1733011589205,0.000864,96607.0,96606.0,0.01687943]
[1733011589410,0.000864,96607.0,96606.0,0.00787943]
[1733011589867,0.000864,96607.0,96606.0,0.01987943]
[1733011590063,0.000864,96607.0,96606.0,0.01187943]
[1733011590467,0.000864,96607.0,96606.0,0.01587943]
[1733011590672,0.000864,96607.0,96606.0,0.01887943]
[1733011591285,0.000864,96607.0,96606.0,0.01587943]
[1733011591695,0.000864,96607.0,96606.0,0.01887943]
[1733011592326,0.000864,96607.0,96606.0,0.01087943]
[1733011592530,0.000864,96607.0,96606.0,0.01887943]
[1733011592951,0.000864,96607.0,96606.0,0.01087943]
[1733011593184,0.000864,96607.0,96606.0,0.01887943]
[1733011593632,0.000864,96607.0,96606.0,0.01587943]
[1733011593832,0.000864,96607.0,96606.0,0.01887943]
[1733011596643,0.000864,96607.0,96606.0,0.01470621]
[1733011596875,0.000864,96607.0,96606.0,0.01887943]
[1733011597126,0.000864,96607.0,96606.0,0.01470621]
[1733011597398,0.000864,96607.0,96606.0,0.01887943]
[1733011598972,0.000864,96607.0,96606.0,0.01470621]
[1733011599186,0.000864,96607.0,96606.0,0.01887943]
[1733011599606,0.000864,96607.0,96606.0,0.01470621]
[1733011600088,0.000864,96607.0,96606.0,0.01887943]
[1733011601756,0.000864,96607.0,96606.0,0.02060723]
[1733011615792,0.02026562,96607.0,96606.0,0.02060723]
[1733011616968,0.02026986,96607.0,96606.0,0.02060723]
[1733011617601,0.000864,96607.0,96606.0,0.02060723]
[1733011619166,0.10370921,96607.0,96606.0,0.01643401]
[1733011619429,0.43103321,96607.0,96606.0,0.01643401]
[1733011619651,0.47344963,96607.0,96606.0,0.0127278]
[1733011620067,0.47344963,96607.0,96606.0,0.0097278]
[1733011620485,0.47344963,96607.0,96606.0,0.0017278]
[1733011621160,0.45403321,96607.0,96606.0,0.0017278]
[1733011621372,0.47343484,96607.0,96606.0,0.0017278]
[1733011621595,0.47343484,96607.0,96606.0,0.00168735]
[1733011621814,0.45403321,96607.0,96606.0,0.00168735]
[1733011622268,0.22400921,96607.0,96606.0,0.00168735]
[1733011622489,0.10370921,96607.0,96606.0,0.00168735]
[1733011624042,0.10470921,96607.0,96606.0,0.00168735]
[1733011626716,0.10470921,96607.0,96606.0,0.00524633]
[1733011627842,0.001864,96607.0,96606.0,0.00941955]
[1733011630054,0.000864,96607.0,96606.0,0.00941955]
[1733011630252,0.000864,96607.0,96606.0,0.01241955]
[1733011636562,0.10370921,96607.0,96606.0,0.00824633]
[1733011636784,0.10370921,96607.0,96606.0,0.00468735]
[1733011637698,0.09764424,96607.0,96606.0,0.00168735]
[1733011637907,0.09864424,96607.0,96606.0,0.00168735]
[1733011638513,0.09764424,96607.0,96606.0,0.00168735]
[1733011640607,0.09764424,96607.0,96606.0,0.00368735]
[1733011642941,0.09764424,96607.0,96606.0,0.00168735]
[1733011643305,0.09764424,96607.0,96606.0,0.00368735]
[1733011647115,0.09850814,96607.0,96606.0,0.00368735]
[1733011659843,0.09850814,96607.0,96606.0,0.00723654]
[1733011660917,0.1082052,96607.0,96606.0,0.00723654]
[1733011661116,0.09850814,96607.0,96606.0,0.00723654]
[1733011661355,0.1082052,96607.0,96606.0,0.00723654]
[1733011661587,0.09850814,96607.0,96606.0,0.00723654]
[1733011661819,0.1082052,96607.0,96606.0,0.00723654]
[1733011662034,0.09850814,96607.0,96606.0,0.00723654]
[1733011662468,0.10820595,96607.0,96606.0,0.00723654]
[1733011662910,0.09850814,96607.0,96606.0,0.00723654]
[1733011663335,0.10820595,96607.0,96606.0,0.00723654]
[1733011664198,0.10820595,96607.0,96606.0,0.00368735]
[1733011668222,0.09850814,96607.0,96606.0,0.0036469]
[1733011668630,0.10820595,96607.0,96606.0,0.0036469]
[1733011668870,0.09850814,96607.0,96606.0,0.0036469]
[1733011669077,0.10820595,96607.0,96606.0,0.0036469]
[1733011672861,0.09850814,96607.0,96606.0,0.0036469]
[1733011673098,0.10821296,96607.0,96606.0,0.0036469]
[1733011675294,0.10821296,96607.0,96606.0,0.1267469]
[1733011675718,0.10821296,96607.0,96606.0,0.13031293]
[1733011676609,0.10821276,96607.0,96606.0,0.13031293]
[1733011679095,0.10821276,96607.0,96606.0,0.08491293]
[1733011679705,0.09850814,96607.0,96606.0,0.08491293]
[1733011679930,0.10821264,96607.0,96606.0,0.08491293]
[1733011680929,0.10821264,96607.0,96606.0,0.00721293]
[1733011685510,0.10821378,96607.0,96606.0,0.00721293]
[1733011685965,0.09850814,96607.0,96606.0,0.00721293]
[1733011686370,0.10821406,96607.0,96606.0,0.00721293]
[1733011690681,0.01056982,96607.0,96606.0,0.01138615]
[1733011690900,0.01056982,96607.0,96606.0,0.13938615]
[1733011691124,0.0008639,96607.0,96606.0,0.13938615]
[1733011693567,0.0008639,96607.0,96606.0,0.13738615]
[1733011693995,0.0008639,96607.0,96606.0,0.14438615]
[1733011694638,0.0008639,96607.0,96606.0,0.14638615]
[1733011699768,0.0008639,96607.0,96606.0,0.01838615]
[1733011704065,0.0008639,96607.0,96606.0,0.06628615]
[1733011705887,0.0008639,96607.0,96606.0,0.14668615]
[1733011709101,0.0008639,96607.0,96606.0,0.14851815]
[1733011710422,0.0008639,96607.0,96606.0,0.14668615]
[1733011717503,0.0008639,96607.0,96606.0,0.15851815]
[1733011717713,0.0008639,96607.0,96606.0,0.26136336]
[1733011717892,0.0008639,96607.0,96606.0,0.25953136]
[1733011718996,0.0008639,96607.0,96606.0,0.25753136]
[1733011719245,0.0008639,96607.0,96606.0,0.25553136]
[1733011719739,0.0008639,96607.0,96606.0,0.25953136]
[1733011719961,0.0008639,96607.0,96606.0,0.25753136]
[1733011720426,0.0008639,96607.0,96606.0,0.40753136]
[1733011721263,0.0008639,96607.0,96606.0,0.41653136]
[1733011727758,0.0008639,96607.0,96606.0,0.69429831]
[1733011728222,0.0008639,96607.0,96606.0,0.41653136]
[1733011730891,0.0008639,96607.0,96606.0,0.69427313]
[1733011735297,0.0008639,96607.0,96606.0,0.41653136]
[1733011753190,0.0008639,96607.0,96606.0,0.44844456]
[1733011757563,0.0008639,96607.0,96606.0,0.41653136]
[1733011758026,0.0008639,96607.0,96606.0,0.44845523]
[1733011758268,0.0008639,96607.0,96606.0,0.41653136]
[1733011758491,0.0008639,96607.0,96606.0,0.44845373]
[1733011758921,0.0008639,96607.0,96606.0,0.41653136]
[1733011761021,0.0008639,96607.0,96606.0,0.82693359]
[1733011761253,0.0008639,96607.0,96606.0,0.41653136]
[1733011761664,0.0008639,96607.0,96606.0,0.44844805]
[1733011772509,0.0008639,96607.0,96606.0,0.43944805]
[1733011772868,0.0008639,96607.0,96606.0,0.44144805]
[1733011774176,0.0008639,96607.0,96606.0,0.44944805]
[1733011796361,0.0008639,96607.0,96606.0,0.47244805]
[1733011796799,0.0008639,96607.0,96606.0,0.78536482]
[1733011797143,0.0008639,96607.0,96606.0,0.77736482]
[1733011797330,0.0008639,96607.0,96606.0,0.46444805]
[1733011797490,0.0008639,96607.0,96606.0,0.77736482]
[1733011797695,0.0008639,96607.0,96606.0,0.46444805]
[1733011797916,0.0008639,96607.0,96606.0,0.45544805]
[1733011798126,0.0008639,96607.0,96606.0,0.45844805]
[1733011802287,0.0008639,96607.0,96606.0,0.76898805]
[1733011815128,0.0017276,96628.0,96627.0,0.01417322]
[1733011815370,0.0017276,96628.0,96627.0,0.67945108]
[1733011815593,0.00184468,96628.0,96627.0,0.26982515]
[1733011816052,0.00184468,96628.0,96627.0,0.30170093]
[1733011816254,0.00184468,96628.0,96627.0,0.61217093]
[1733011816467,0.00184468,96628.0,96627.0,0.81915193]
[1733011816874,0.00184468,96628.0,96627.0,0.82515193]
[1733011817948,0.00184468,96628.0,96627.0,0.80227615]
[1733011818571,0.00184468,96628.0,96627.0,0.59529515]
[1733011821280,0.08354468,96628.0,96627.0,0.59529515]
[1733011821656,0.08354468,96628.0,96627.0,0.87312462]
[1733011821889,0.08354468,96628.0,96627.0,0.59529515]
[1733011823900,0.08354468,96628.0,96627.0,0.87312462]
[1733011824132,0.08354468,96628.0,96627.0,0.60638586]
[1733011824560,0.08354468,96628.0,96627.0,0.88421533]
[1733011825387,0.08354468,96628.0,96627.0,0.60638586]
[1733011826925,0.08354468,96628.0,96627.0,0.88421533]
[1733011827355,0.00184468,96628.0,96627.0,0.88421533]
[1733011827623,0.00184468,96628.0,96627.0,0.60638586]
[1733011829379,0.00184468,96628.0,96627.0,1.01652333]
[1733011829616,0.00184468,96628.0,96627.0,0.60638586]
[1733011831913,0.00184468,96628.0,96627.0,0.60762085]
[1733011832412,0.00184468,96628.0,96627.0,1.01777444]
[1733011832663,0.00184468,96628.0,96627.0,0.60762085]
[1733011837497,0.00184468,96628.0,96627.0,0.59862085]
[1733011838004,0.00184468,96628.0,96627.0,0.60762085]
[1733011838205,0.00184468,96628.0,96627.0,0.60162085]
[1733011838716,0.00184468,96628.0,96627.0,0.61062085]
[1733011841541,0.00184468,96628.0,96627.0,1.0206747]
[1733011842232,0.00184468,96628.0,96627.0,1.02066732]
[1733011842668,0.00184468,96628.0,96627.0,1.06996732]
[1733011844160,0.01405358,96640.0,96639.0,0.50162822]
[1733011844331,5.8e-07,96640.0,96639.0,0.63747343]
[1733011844541,5.94406935,96680.0,96648.0,0.01417322]
[1733011844747,0.0812,96668.0,96648.0,0.78618521]
[1733011845056,0.0812,96668.0,96648.0,0.78837574]
[1733011845697,0.0812,96668.0,96648.0,1.19774874]
[1733011846112,0.0812,96668.0,96648.0,0.79437574]
[1733011846328,0.0812,96668.0,96648.0,0.78937574]
[1733011846770,0.0812,96668.0,96648.0,1.201593]
[1733011846942,0.0812,96668.0,96648.0,0.79237574]
[1733011847183,0.0812,96668.0,96648.0,1.2015919]
[1733011847394,0.0812,96668.0,96648.0,1.2005919]
[1733011847597,0.0812,96668.0,96648.0,0.79137574]
[1733011848061,0.0472,96667.0,96648.0,0.79137574]
[1733011848276,0.0472,96667.0,96648.0,0.80214356]
[1733011849794,0.0472,96667.0,96648.0,0.59520756]
[1733011850907,0.0812,96651.0,96648.0,0.60020756]
[1733011851175,0.1284,96651.0,96648.0,0.59720756]
[1733011851387,0.1284,96651.0,96648.0,0.59220756]
[1733011851719,0.1284,96651.0,96648.0,0.60120756]
[1733011851919,0.1284,96651.0,96648.0,0.59220756]
[1733011852105,0.1284,96651.0,96648.0,0.60120756]
[1733011852518,0.1284,96651.0,96648.0,0.59220756]
[1733011852712,0.1284,96651.0,96648.0,0.60120756]
[1733011853627,0.001928,96649.0,96648.0,0.60820756]
[1733011853966,0.001928,96649.0,96648.0,0.59220756]
[1733011854447,0.001928,96649.0,96648.0,0.60120756]
[1733011854634,0.001928,96649.0,96648.0,0.59220756]
[1733011854849,0.001928,96649.0,96648.0,0.60120756]
[1733011855057,0.001928,96649.0,96648.0,0.61020756]
[1733011855263,0.001928,96649.0,96648.0,0.60120756]
[1733011856769,0.001928,96649.0,96648.0,0.61020756]
[1733011874489,0.050928,96649.0,96648.0,0.33659453]
[1733011874950,0.050928,96649.0,96648.0,0.02619453]
[1733011875435,0.050928,96649.0,96648.0,0.00819453]
[1733011875655,0.050928,96649.0,96648.0,0.01719453]
[1733011875834,0.050928,96649.0,96648.0,0.02119453]
[1733011876278,0.050928,96649.0,96648.0,0.01719453]
[1733011876490,0.050928,96649.0,96648.0,0.02319453]
[1733011877344,0.050928,96649.0,96648.0,0.01419453]
[1733011877778,0.050928,96649.0,96648.0,0.02319453]
[1733011878863,0.050928,96649.0,96648.0,0.01419453]
[1733011879095,0.050928,96649.0,96648.0,0.02319453]
[1733011885120,0.001928,96649.0,96648.0,0.02319453]
[1733011888724,0.001928,96649.0,96648.0,0.0250258]
[1733011891647,0.001928,96649.0,96648.0,0.02502572]
[1733011892052,0.001928,96649.0,96648.0,0.02319453]
[1733011896482,0.00048972,96649.0,96648.0,0.02319453]
[1733011896943,0.04998972,96649.0,96648.0,0.02319453]
[1733011910283,0.13028972,96649.0,96648.0,0.02319453]
[1733011912139,0.00048972,96649.0,96648.0,0.02319453]
[1733011921293,0.00048972,96649.0,96648.0,0.01902131]
[1733011921522,0.22573493,96649.0,96648.0,0.01902131]
[1733011922147,0.22573493,96649.0,96648.0,0.01302131]
[1733011922559,0.22573493,96649.0,96648.0,0.009]
[1733011923316,0.22573493,96649.0,96647.0,0.03]
[1733011923446,0.12288972,96649.0,96648.0,0.0028637]
[1733011923656,0.22573493,96649.0,96648.0,0.00630218]
[1733011923871,0.22573493,96649.0,96648.0,0.0028637]
[1733011924725,0.22573493,96649.0,96648.0,0.0008637]
[1733011925148,0.22573493,96649.0,96648.0,0.0028637]
[1733011930310,0.22573493,96649.0,96648.0,0.0008637]
[1733011930513,0.22573493,96649.0,96648.0,0.0018637]
[1733011930713,0.22673493,96649.0,96648.0,0.0018637]
[1733011931331,0.22573493,96649.0,96648.0,0.0008637]
[1733011931529,0.22673493,96649.0,96648.0,0.0008637]
[1733011932221,0.22573493,96649.0,96648.0,0.0008637]
[1733011933202,0.22573493,96649.0,96648.0,0.0028637]
[1733011933811,0.22573493,96649.0,96648.0,0.0008637]
[1733011934222,0.22673493,96649.0,96648.0,0.0008637]
[1733011934620,0.22573493,96649.0,96648.0,0.0008637]
[1733011935713,0.22573493,96649.0,96648.0,0.0028637]
[1733011939262,0.23542321,96649.0,96648.0,0.0028637]
[1733011940207,0.23542321,96649.0,96648.0,0.0008637]
[1733011940444,0.23642321,96649.0,96648.0,0.0008637]
[1733011942678,0.23642515,96649.0,96648.0,0.0008637]
[1733011946780,0.22673493,96649.0,96648.0,0.0008637]
[1733011947321,0.22573493,96649.0,96648.0,0.0008637]
[1733011948155,0.23542515,96649.0,96648.0,0.0008637]
[1733011948993,0.23542515,96649.0,96648.0,0.0028637]
[1733011949777,0.22573493,96649.0,96648.0,0.0028637]
[1733011951977,0.23543291,96649.0,96648.0,0.0028637]
[1733011956610,0.23543631,96649.0,96648.0,0.0028637]
[1733011957632,0.15823631,96649.0,96648.0,0.0028637]
[1733011960338,0.15323631,96649.0,96648.0,0.0028637]
[1733011960713,0.11254659,96649.0,96648.0,0.0028637]
[1733011963711,0.11254766,96649.0,96648.0,0.0028637]
[1733011967053,0.11254881,96649.0,96648.0,0.0028637]
[1733011968776,0.11427621,96649.0,96648.0,0.0028637]
[1733011969238,0.10457261,96649.0,96648.0,0.0028637]
[1733011980485,0.08031607,96649.0,96648.0,0.0028637]
[1733011982613,0.08031607,96649.0,96648.0,0.0495637]
[1733011982824,0.08031607,96649.0,96648.0,0.05279216]
[1733011984100,0.08031607,96649.0,96648.0,0.13616538]
[1733011984101,0.0017274,96649.0,96648.0,0.13616538]
[1733011991123,0.0017274,96649.0,96648.0,0.01026538]
[1733011991917,0.0017274,96649.0,96648.0,0.00609216]
[1733011992106,0.31150661,96649.0,96648.0,0.00609216]
[1733011992301,0.10457261,96649.0,96648.0,0.0028637]
[1733012000027,0.11537601,96649.0,96648.0,0.0028637]
[1733012008671,0.0017274,96649.0,96648.0,0.0567348]
[1733012008885,0.0017274,96649.0,96648.0,0.05363692]
[1733012009118,0.0017274,96649.0,96648.0,0.05674455]
[1733012009528,0.0017274,96649.0,96648.0,0.13874455]
[1733012011731,0.0017274,96649.0,96648.0,0.05674455]
[1733012011891,0.0017274,96649.0,96648.0,0.01014455]
[1733012052918,0.0017274,96649.0,96648.0,0.13134455]
[1733012053895,0.0017274,96649.0,96648.0,0.12934455]
[1733012054096,0.0017274,96649.0,96648.0,0.13534455]
[1733012054628,0.0017274,96649.0,96648.0,0.13734455]
[1733012066650,0.0017274,96649.0,96648.0,0.01614455]
[1733012067761,0.0017274,96649.0,96648.0,0.14344455]
[1733012071934,0.0017274,96649.0,96648.0,0.14527586]
[1733012072822,0.0017274,96649.0,96648.0,0.14327586]
[1733012073022,0.0017274,96649.0,96648.0,0.14427586]
[1733012073532,0.0017274,96649.0,96648.0,0.15327586]
[1733012073780,0.0017274,96649.0,96648.0,0.25712107]
[1733012074006,0.0017274,96649.0,96648.0,0.26428976]
[1733012074428,0.0017274,96649.0,96648.0,0.25728976]
[1733012074634,0.0017274,96649.0,96648.0,0.26528976]
[1733012075030,0.0017274,96649.0,96648.0,0.62222576]
[1733012075661,0.0017274,96649.0,96648.0,0.64522576]
[1733012076161,0.0017274,96649.0,96648.0,0.65614807]
[1733012076803,0.0017274,96649.0,96648.0,0.64714807]
[1733012077295,0.0017274,96649.0,96648.0,0.65014807]
[1733012077510,0.0017274,96649.0,96648.0,0.64214807]
[1733012086512,0.0017274,96649.0,96648.0,0.43521207]
[1733012088013,0.0017274,96649.0,96648.0,0.41221207]
[1733012089063,0.0017274,96649.0,96648.0,0.42121207]
[1733012089560,0.0017274,96649.0,96648.0,0.41821207]
[1733012089808,0.0017274,96649.0,96648.0,0.42721207]
[1733012093543,0.0017274,96649.0,96648.0,0.42594907]
[1733012098825,0.0017274,96649.0,96648.0,0.41594907]
[1733012099032,0.0017274,96649.0,96648.0,0.03580386]
[1733012100968,0.0017274,96649.0,96648.0,0.02488155]
[1733012101250,0.1250274,96649.0,96648.0,0.02488155]
[1733012102104,0.1250274,96649.0,96648.0,0.01588155]
[1733012102325,0.22787261,96649.0,96648.0,0.009]
[1733012102572,0.22787261,96649.0,96648.0,0.014]
[1733012103318,0.22787261,96649.0,96648.0,0.009]
[1733012103526,0.22787261,96649.0,96648.0,0.012]
[1733012103733,0.22787261,96649.0,96648.0,0.003]
[1733012103940,0.22787261,96649.0,96648.0,0.004]
[1733012104394,0.22787261,96649.0,96648.0,0.003]
[1733012104816,0.22787261,96649.0,96648.0,0.004]
[1733012105228,0.22787261,96649.0,96648.0,0.0048638]
[1733012108067,0.40087261,96649.0,96648.0,0.0048638]
[1733012108659,0.41053078,96649.0,96648.0,0.0048638]
[1733012108891,0.40087261,96649.0,96648.0,0.0048638]
[1733012111070,0.39587261,96649.0,96648.0,0.0048638]
[1733012112205,0.41552535,96649.0,96648.0,0.0048638]
[1733012112408,0.41552535,96649.0,96648.0,0.0018638]
[1733012113675,0.41552535,96649.0,96648.0,0.0008638]
[1733012113903,0.41652535,96649.0,96648.0,0.0008638]
[1733012115119,0.41652235,96649.0,96648.0,0.0008638]
[1733012115835,0.38352235,96649.0,96648.0,0.0008638]
[1733012116077,0.37387261,96649.0,96648.0,0.0008638]
[1733012116566,0.37560021,96649.0,96648.0,0.0008638]
[1733012116814,0.37460021,96649.0,96648.0,0.0008638]
[1733012117092,0.39860021,96649.0,96648.0,0.0008638]
[1733012117557,0.39760021,96649.0,96648.0,0.0008638]
[1733012117979,0.39860021,96649.0,96648.0,0.0008638]
[1733012118391,0.39760021,96649.0,96648.0,0.0018638]
[1733012119055,0.39760021,96649.0,96648.0,0.0008638]
[1733012119511,0.39760021,96649.0,96648.0,0.0018638]
[1733012120099,0.40760021,96649.0,96648.0,0.0018638]
[1733012120303,0.39760021,96649.0,96648.0,0.0018638]
[1733012120760,0.39860021,96649.0,96648.0,0.0018638]
[1733012121200,0.39760021,96649.0,96648.0,0.0018638]
[1733012121711,0.39860021,96649.0,96648.0,0.0018638]
[1733012124066,0.10557281,96649.0,96648.0,0.0018638]
[1733012125067,0.0027276,96649.0,96648.0,0.00603702]
[1733012125312,0.0017276,96649.0,96648.0,0.00603702]
[1733012125550,0.0017276,96649.0,96648.0,0.00802188]
[1733012125788,0.0017276,96649.0,96648.0,0.01002188]
[1733012126030,0.0017276,96649.0,96648.0,0.05982188]
[1733012126269,0.0017276,96649.0,96648.0,0.13962188]
[1733012126511,0.0017276,96649.0,96648.0,0.14562188]
[1733012127749,0.0017276,96649.0,96648.0,0.13962188]
[1733012127993,0.0017276,96649.0,96648.0,0.14762188]
[1733012128234,0.0017276,96649.0,96648.0,0.13962188]
[1733012128752,0.0017276,96649.0,96648.0,0.14862188]
[1733012128991,0.0017276,96649.0,96648.0,0.15062188]
[1733012129475,0.0017276,96649.0,96648.0,0.14862188]
[1733012130002,0.0017276,96649.0,96648.0,0.15362188]
[1733012131188,0.0017276,96649.0,96648.0,0.13962188]
[1733012131630,0.0017276,96649.0,96648.0,0.15362188]
[1733012131837,0.0017276,96649.0,96648.0,0.14462188]
[1733012132043,0.0017276,96649.0,96648.0,0.13962188]
[1733012132239,0.0017276,96649.0,96648.0,0.14862188]
[1733012132480,0.0017276,96649.0,96648.0,0.15362188]
[1733012132691,0.0017276,96649.0,96648.0,0.14462188]
[1733012132904,0.0017276,96649.0,96648.0,0.14862188]
[1733012133324,0.0017276,96649.0,96648.0,0.14462188]
[1733012134587,0.0017276,96649.0,96648.0,0.14862188]
[1733012134784,0.0017276,96649.0,96648.0,0.14462188]
[1733012135148,0.0017276,96649.0,96648.0,0.15362188]
[1733012135346,0.0017276,96649.0,96648.0,0.14862188]
[1733012135572,0.0017276,96649.0,96648.0,0.15362188]
[1733012135958,0.0017276,96649.0,96648.0,0.14462188]
[1733012136232,0.0017276,96649.0,96648.0,0.13962188]
[1733012136444,0.0017276,96649.0,96648.0,0.15362188]
[1733012137550,0.0017276,96649.0,96648.0,0.14462188]
[1733012137781,0.0017276,96649.0,96648.0,0.13962188]
[1733012138006,0.0017276,96649.0,96648.0,0.15362188]
[1733012138226,0.0017276,96649.0,96648.0,0.14462188]
[1733012138665,0.0017276,96649.0,96648.0,0.13962188]
[1733012138873,0.0017276,96649.0,96648.0,0.14362188]
[1733012139081,0.0017276,96649.0,96648.0,0.15262188]
[1733012149853,0.0017276,96649.0,96648.0,0.1544531]
[1733012155564,0.0017276,96649.0,96648.0,0.25729831]
[1733012155768,0.0017276,96649.0,96648.0,0.26546709]
[1733012159679,0.0017276,96649.0,96648.0,0.41546709]
[1733012160060,0.0017276,96649.0,96648.0,0.41146709]
[1733012160486,0.0017276,96649.0,96648.0,0.41546709]
[1733012160865,0.0017276,96649.0,96648.0,0.41146709]
[1733012161248,0.0017276,96649.0,96648.0,0.41046709]
[1733012161451,0.0017276,96649.0,96648.0,0.41946709]
[1733012161687,0.0017276,96649.0,96648.0,0.40246709]
[1733012162085,0.0017276,96649.0,96648.0,0.41946709]
[1733012162505,0.0017276,96649.0,96648.0,0.41046709]
[1733012162679,0.0017276,96649.0,96648.0,0.41946709]
[1733012163063,0.0017276,96649.0,96648.0,0.41046709]
[1733012163488,0.0017276,96649.0,96648.0,0.40246709]
[1733012163691,0.0017276,96649.0,96648.0,0.41046709]
[1733012164325,0.0017276,96649.0,96648.0,0.40246709]
[1733012164547,0.0017276,96649.0,96648.0,0.41046709]
[1733012164960,0.0017276,96649.0,96648.0,0.41946709]
[1733012165165,0.0017276,96649.0,96648.0,0.40246709]
[1733012165426,0.0017276,96649.0,96648.0,0.40646709]
[1733012165632,0.0017276,96649.0,96648.0,0.41546709]
[1733012181893,0.0017276,96649.0,96648.0,0.40646709]
[1733012182340,0.0017276,96649.0,96648.0,0.40546709]
[1733012182584,0.0017276,96649.0,96648.0,0.40646709]
[1733012184571,0.0017276,96649.0,96648.0,0.81597617]
[1733012187607,0.0017276,96649.0,96648.0,0.84783912]
[1733012189652,0.0017276,96649.0,96648.0,0.43833004]
[1733012200722,0.0017276,96649.0,96648.0,0.42415682]
[1733012200976,0.0017276,96649.0,96648.0,0.70698823]
[1733012201209,0.0017276,96649.0,96648.0,0.26486709]
[1733012201841,0.0017276,96649.0,96648.0,0.26086709]
[1733012202255,0.0017276,96649.0,96648.0,0.27886709]
[1733012202713,0.0017276,96649.0,96648.0,0.26986709]
[1733012202929,0.0017276,96649.0,96648.0,0.27786709]
[1733012207248,0.1278276,96649.0,96648.0,0.02502188]
[1733012207670,0.1278276,96649.0,96648.0,0.02424172]
[1733012208091,0.1278276,96649.0,96648.0,0.01524172]
[1733012208702,0.1278276,96649.0,96648.0,0.00724172]
[1733012208911,0.1278276,96649.0,96648.0,0.01124172]
[1733012209114,0.1278276,96649.0,96648.0,0.02024172]
[1733012209324,0.1278276,96649.0,96648.0,0.01624172]
[1733012209739,0.1278276,96649.0,96648.0,0.02024172]
[1733012210160,0.1278276,96649.0,96648.0,0.00724172]
[1733012210577,0.1278276,96649.0,96648.0,0.02024172]
[1733012210740,0.1278276,96649.0,96648.0,0.01124172]
[1733012211178,0.1278276,96649.0,96648.0,0.02024172]
[1733012211389,0.1278276,96649.0,96648.0,0.01124172]
[1733012211611,0.1278276,96649.0,96648.0,0.02024172]
[1733012212189,0.1278276,96649.0,96648.0,0.01624172]
[1733012212581,0.1278276,96649.0,96648.0,0.02024172]
[1733012212936,0.1278276,96649.0,96648.0,0.01624172]
[1733012213351,0.1278276,96649.0,96648.0,0.02124172]
[1733012226771,0.0485276,96649.0,96648.0,0.02124172]
[1733012226987,0.0017276,96649.0,96648.0,0.02124172]
[1733012227213,0.0017276,96649.0,96648.0,0.01903702]
[1733012227422,0.0017276,96649.0,96648.0,0.02150418]
[1733012227631,0.0017276,96649.0,96648.0,0.01903702]
[1733012231080,0.1345276,96649.0,96648.0,0.01903702]
[1733012231964,0.1345276,96649.0,96648.0,0.01403702]
[1733012232397,0.1345276,96649.0,96648.0,0.01503702]
[1733012232607,0.1345276,96649.0,96648.0,0.00603702]
[1733012232862,0.1345276,96649.0,96648.0,0.01103702]
[1733012233080,0.1345276,96649.0,96648.0,0.00503702]
[1733012233301,0.1345276,96649.0,96648.0,0.01303702]
[1733012234183,0.1345276,96649.0,96648.0,0.01503702]
[1733012236620,0.0514276,96649.0,96648.0,0.01503702]
[1733012236835,0.0514276,96649.0,96648.0,0.01753071]
[1733012237128,0.0514276,96649.0,96648.0,0.01503702]
[1733012251443,0.0514276,96649.0,96648.0,0.0108638]
[1733012251702,0.23597281,96649.0,96648.0,0.0108638]